[Event "Titled Tuesday Blitz February 15 Early 2022"]
[White "Martin, Lewis"]
[Black "FGHSMN"]
[WhiteFideId "410551"]
[WhiteElo "2145"]
[BlackElo "2721"]
[Result "0-1"]
[Round "01"]
[TimeControl "180+1"]
[Date "2022.02.15"]
[WhiteClock "0:00:13"]
[BlackClock "0:00:24"]

1. e4 {[%clk 0:03:00]}  c5 {[%clk 0:02:57]} 2. Nf3 {[%clk 0:03:00]}  e6 {[%clk 0:02:57]} 3. d4 {[%clk 0:03:01]}  cxd4 {[%clk 0:02:56]} 4. Nxd4 {[%clk 0:03:02]}  a6 {[%clk 0:02:57]} 5. Nc3 {[%clk 0:02:59]}  Qc7 {[%clk 0:02:56]} 6. g3 {[%clk 0:02:58]}  b5 {[%clk 0:02:55]} 7. a3 {[%clk 0:02:56]}  Bb7 {[%clk 0:02:54]} 8. Bg2 {[%clk 0:02:56]}  Nf6 {[%clk 0:02:54]} 9. O-O {[%clk 0:02:56]}  d6 {[%clk 0:02:54]} 10. Re1 {[%clk 0:02:52]}  Be7 {[%clk 0:02:53]} 11. h3 {[%clk 0:02:51]}  Nbd7 {[%clk 0:02:53]} 12. g4 {[%clk 0:02:33]}  h6 {[%clk 0:02:29]} 13. Nde2 {[%clk 0:02:24]}  g5 {[%clk 0:02:25]} 14. Ng3 {[%clk 0:02:22]}  Ne5 {[%clk 0:02:22]} 15. Be3 {[%clk 0:02:15]}  Nc4 {[%clk 0:02:18]} 16. Qc1 {[%clk 0:02:12]}  Nxe3 {[%clk 0:02:16]} 17. Qxe3 {[%clk 0:02:12]}  Nd7 {[%clk 0:02:10]} 18. Rad1 {[%clk 0:02:08]}  Ne5 {[%clk 0:02:07]} 19. Re2 {[%clk 0:01:57]}  Qc5 {[%clk 0:02:01]} 20. Qxc5 {[%clk 0:01:53]}  dxc5 {[%clk 0:02:00]} 21. b3 {[%clk 0:01:52]}  Rd8 {[%clk 0:01:56]} 22. Red2 {[%clk 0:01:50]}  O-O {[%clk 0:01:51]} 23. a4 {[%clk 0:01:41]}  Bc6 {[%clk 0:01:46]} 24. axb5 {[%clk 0:01:40]}  axb5 {[%clk 0:01:47]} 25. Rxd8 {[%clk 0:01:39]}  Rxd8 {[%clk 0:01:46]} 26. Rxd8+ {[%clk 0:01:38]}  Bxd8 {[%clk 0:01:46]} 27. Bf1 {[%clk 0:01:27]}  Nf3+ {[%clk 0:01:45]} 28. Kh1 {[%clk 0:01:23]}  Nd4 {[%clk 0:01:43]} 29. Bd3 {[%clk 0:01:19]}  Ba5 {[%clk 0:01:17]} 30. Nce2 {[%clk 0:01:16]}  Nxe2 {[%clk 0:01:16]} 31. Nxe2 {[%clk 0:01:14]}  c4 {[%clk 0:01:15]} 32. bxc4 {[%clk 0:01:10]}  bxc4 {[%clk 0:01:16]} 33. Bxc4 {[%clk 0:01:10]}  Bxe4+ {[%clk 0:01:16]} 34. Kg1 {[%clk 0:01:09]}  Bxc2 {[%clk 0:01:17]} 35. Ng3 {[%clk 0:01:03]}  Bc7 {[%clk 0:01:14]} 36. Nh5 {[%clk 0:01:01]}  Be5 {[%clk 0:01:09]} 37. Kg2 {[%clk 0:00:59]}  Kf8 {[%clk 0:01:08]} 38. Be2 {[%clk 0:00:48]}  Ke7 {[%clk 0:01:06]} 39. h4 {[%clk 0:00:35]}  gxh4 {[%clk 0:00:45]} 40. Kh3 {[%clk 0:00:28]}  Bd4 {[%clk 0:00:44]} 41. f4 {[%clk 0:00:24]}  Bf2 {[%clk 0:00:43]} 42. g5 {[%clk 0:00:21]}  hxg5 {[%clk 0:00:40]} 43. fxg5 {[%clk 0:00:22]}  Bf5+ {[%clk 0:00:33]} 44. Kg2 {[%clk 0:00:20]}  Be3 {[%clk 0:00:31]} 45. Ng7 {[%clk 0:00:18]}  Be4+ {[%clk 0:00:29]} 46. Kh3 {[%clk 0:00:18]}  Bxg5 {[%clk 0:00:28]} 47. Kg4 {[%clk 0:00:18]}  Bf6 {[%clk 0:00:27]} 48. Nh5 {[%clk 0:00:19]}  Bf5+ {[%clk 0:00:28]} 49. Kf4 {[%clk 0:00:19]}  h3 {[%clk 0:00:27]} 50. Bf3 {[%clk 0:00:17]}  h2 {[%clk 0:00:28]} 51. Kg3 {[%clk 0:00:15]}  Be5+ {[%clk 0:00:28]} 52. Kg2 {[%clk 0:00:15]}  Kd6 {[%clk 0:00:26]} 53. Ng3 {[%clk 0:00:15]}  Bxg3 {[%clk 0:00:25]} 54. Kxg3 {[%clk 0:00:15]}  Ke5 {[%clk 0:00:21]} 55. Kxh2 {[%clk 0:00:15]}  Kf4 {[%clk 0:00:22]} 56. Be2 {[%clk 0:00:14]}  Bg4 {[%clk 0:00:22]} 57. Bb5 {[%clk 0:00:14]}  f5 {[%clk 0:00:22]} 58. Kg2 {[%clk 0:00:14]}  e5 {[%clk 0:00:22]} 59. Kf2 {[%clk 0:00:15]}  e4 {[%clk 0:00:23]} 60. Kf1 {[%clk 0:00:15]}  e3 {[%clk 0:00:23]} 61. Ke1 {[%clk 0:00:15]}  Kg3 {[%clk 0:00:22]} 62. Kf1 {[%clk 0:00:15]}  f4 {[%clk 0:00:23]} 63. Bc6 {[%clk 0:00:15]}  f3 {[%clk 0:00:23]} 64. Bd5 {[%clk 0:00:13]}  e2+ {[%clk 0:00:23]} 65. Ke1 {[%clk 0:00:13]}  f2+ {[%clk 0:00:24]} 66. Kd2 {[%clk 0:00:13]}  e1=Q+ {[%clk 0:00:24]} 0-1


[Site "https://www.chess.com"]

[Event "Titled Tuesday Blitz February 15 Early 2022"]
[White "Martinez Alcantara, Jose Eduardo"]
[Black "Poormosavi, Seyed Kian"]
[WhiteFideId "3805662"]
[BlackFideId "12585807"]
[WhiteElo "2690"]
[BlackElo "2116"]
[Result "1-0"]
[Round "01"]
[TimeControl "180+1"]
[Date "2022.02.15"]
[WhiteClock "0:00:34"]
[BlackClock "0:00:02"]

1. e4 {[%clk 0:03:00]}  c6 {[%clk 0:02:57]} 2. d4 {[%clk 0:02:58]}  d5 {[%clk 0:02:57]} 3. e5 {[%clk 0:02:57]}  c5 {[%clk 0:02:57]} 4. Nf3 {[%clk 0:02:57]}  e6 {[%clk 0:02:41]} 5. c3 {[%clk 0:02:57]}  Nc6 {[%clk 0:02:40]} 6. Bd3 {[%clk 0:02:57]}  Bd7 {[%clk 0:02:39]} 7. O-O {[%clk 0:02:56]}  Qb6 {[%clk 0:02:38]} 8. dxc5 {[%clk 0:02:49]}  Bxc5 {[%clk 0:02:39]} 9. b4 {[%clk 0:02:49]}  Be7 {[%clk 0:02:33]} 10. Bf4 {[%clk 0:02:40]}  O-O-O {[%clk 0:02:10]} 11. a4 {[%clk 0:02:34]}  Qc7 {[%clk 0:02:10]} 12. Nbd2 {[%clk 0:02:27]}  Nh6 {[%clk 0:01:56]} 13. Re1 {[%clk 0:02:21]}  Nf5 {[%clk 0:01:43]} 14. Rc1 {[%clk 0:01:59]}  Rhg8 {[%clk 0:01:13]} 15. b5 {[%clk 0:01:59]}  Na5 {[%clk 0:01:04]} 16. c4 {[%clk 0:01:59]}  d4 {[%clk 0:01:04]} 17. Ne4 {[%clk 0:01:51]}  Kb8 {[%clk 0:00:47]} 18. c5 {[%clk 0:01:47]}  Bc8 {[%clk 0:00:28]} 19. h3 {[%clk 0:01:41]}  h5 {[%clk 0:00:27]} 20. Bh2 {[%clk 0:01:24]}  g5 {[%clk 0:00:25]} 21. g4 {[%clk 0:01:17]}  hxg4 {[%clk 0:00:24]} 22. hxg4 {[%clk 0:01:18]}  Nh4 {[%clk 0:00:20]} 23. Nxh4 {[%clk 0:01:13]}  gxh4 {[%clk 0:00:20]} 24. Kh1 {[%clk 0:01:13]}  Rg7 {[%clk 0:00:16]} 25. Nd6 {[%clk 0:01:05]}  Rdg8 {[%clk 0:00:14]} 26. f3 {[%clk 0:01:06]}  Bd7 {[%clk 0:00:11]} 27. Be4 {[%clk 0:01:05]}  b6 {[%clk 0:00:07]} 28. c6 {[%clk 0:01:05]}  Bc8 {[%clk 0:00:08]} 29. Rc2 {[%clk 0:01:03]}  Rd8 {[%clk 0:00:08]} 30. Qxd4 {[%clk 0:00:58]}  f6 {[%clk 0:00:07]} 31. Rd1 {[%clk 0:00:43]}  fxe5 {[%clk 0:00:07]} 32. Bxe5 {[%clk 0:00:44]}  Nb3 {[%clk 0:00:08]} 33. Qc3 {[%clk 0:00:38]}  Nc5 {[%clk 0:00:08]} 34. Bxg7 {[%clk 0:00:36]}  Bxd6 {[%clk 0:00:06]} 35. Rcd2 {[%clk 0:00:34]}  Be7 {[%clk 0:00:02]} 36. Be5 {[%clk 0:00:34]} 1-0


[Site "https://www.chess.com"]

[Event "Titled Tuesday Blitz February 15 Early 2022"]
[White "Martirosyan, Haik M."]
[Black "Shtyka, Sergey"]
[WhiteFideId "13306553"]
[BlackFideId "4138465"]
[WhiteElo "2735"]
[BlackElo "2014"]
[Result "1/2-1/2"]
[Round "01"]
[TimeControl "180+1"]
[Date "2022.02.15"]
[WhiteClock "0:01:08"]
[BlackClock "0:00:17"]

1. c4 {[%clk 0:02:59]}  c5 {[%clk 0:02:57]} 2. Nc3 {[%clk 0:02:58]}  Nc6 {[%clk 0:02:57]} 3. g3 {[%clk 0:02:58]}  g6 {[%clk 0:02:58]} 4. Bg2 {[%clk 0:02:59]}  Bg7 {[%clk 0:02:58]} 5. Nf3 {[%clk 0:02:58]}  Nf6 {[%clk 0:02:58]} 6. O-O {[%clk 0:02:58]}  O-O {[%clk 0:02:58]} 7. d3 {[%clk 0:02:58]}  d6 {[%clk 0:02:59]} 8. Bd2 {[%clk 0:02:58]}  Bd7 {[%clk 0:02:58]} 9. a3 {[%clk 0:02:58]}  a6 {[%clk 0:02:58]} 10. Rb1 {[%clk 0:02:59]}  Rb8 {[%clk 0:02:57]} 11. b4 {[%clk 0:02:59]}  cxb4 {[%clk 0:02:57]} 12. axb4 {[%clk 0:03:00]}  b5 {[%clk 0:02:57]} 13. cxb5 {[%clk 0:03:01]}  axb5 {[%clk 0:02:58]} 14. Ne1 {[%clk 0:03:01]}  Nd4 {[%clk 0:02:44]} 15. e3 {[%clk 0:02:57]}  Nf5 {[%clk 0:02:44]} 16. Nf3 {[%clk 0:02:52]}  Ne8 {[%clk 0:02:27]} 17. Qe2 {[%clk 0:02:48]}  Nc7 {[%clk 0:02:24]} 18. Rfc1 {[%clk 0:02:48]}  Ne6 {[%clk 0:02:20]} 19. Nd5 {[%clk 0:02:46]}  Rc8 {[%clk 0:02:18]} 20. Rxc8 {[%clk 0:02:45]}  Bxc8 {[%clk 0:02:16]} 21. Bc3 {[%clk 0:02:36]}  Bb7 {[%clk 0:02:14]} 22. Bxg7 {[%clk 0:02:35]}  Kxg7 {[%clk 0:02:08]} 23. Nd2 {[%clk 0:02:27]}  Bxd5 {[%clk 0:01:39]} 24. Bxd5 {[%clk 0:02:27]}  Qc7 {[%clk 0:01:39]} 25. Nb3 {[%clk 0:02:26]}  Rc8 {[%clk 0:01:36]} 26. Bxe6 {[%clk 0:02:16]}  fxe6 {[%clk 0:01:36]} 27. e4 {[%clk 0:02:16]}  Nh6 {[%clk 0:01:31]} 28. Nd4 {[%clk 0:02:15]}  Qd7 {[%clk 0:01:28]} 29. Ra1 {[%clk 0:02:01]}  e5 {[%clk 0:01:25]} 30. Nc2 {[%clk 0:02:00]}  Nf7 {[%clk 0:01:25]} 31. Ne3 {[%clk 0:02:00]}  e6 {[%clk 0:01:17]} 32. h4 {[%clk 0:01:59]}  Nd8 {[%clk 0:01:13]} 33. h5 {[%clk 0:01:57]}  Nc6 {[%clk 0:01:12]} 34. Nc2 {[%clk 0:01:55]}  Nd4 {[%clk 0:01:03]} 35. Nxd4 {[%clk 0:01:54]}  exd4 {[%clk 0:01:03]} 36. e5 {[%clk 0:01:55]}  d5 {[%clk 0:00:58]} 37. Qg4 {[%clk 0:01:54]}  Rc7 {[%clk 0:00:44]} 38. Qf4 {[%clk 0:01:51]}  Rc3 {[%clk 0:00:30]} 39. h6+ {[%clk 0:01:50]}  Kg8 {[%clk 0:00:28]} 40. Qxd4 {[%clk 0:01:48]}  Qc8 {[%clk 0:00:26]} 41. Ra7 {[%clk 0:01:43]}  Rc7 {[%clk 0:00:25]} 42. Ra5 {[%clk 0:01:40]}  Qb8 {[%clk 0:00:20]} 43. Kg2 {[%clk 0:01:39]}  Rf7 {[%clk 0:00:19]} 44. Ra6 {[%clk 0:01:38]}  Qe8 {[%clk 0:00:18]} 45. Qb6 {[%clk 0:01:32]}  Re7 {[%clk 0:00:17]} 46. d4 {[%clk 0:01:28]}  g5 {[%clk 0:00:17]} 47. Ra5 {[%clk 0:01:24]}  g4 {[%clk 0:00:17]} 48. Qxb5 {[%clk 0:01:24]}  Qf8 {[%clk 0:00:17]} 49. Qe2 {[%clk 0:01:23]}  Rf7 {[%clk 0:00:17]} 50. Qxg4+ {[%clk 0:01:23]}  Kh8 {[%clk 0:00:17]} 51. Ra2 {[%clk 0:01:22]}  Rxf2+ {[%clk 0:00:17]} 52. Rxf2 {[%clk 0:01:07]}  Qxf2+ {[%clk 0:00:17]} 53. Kh3 {[%clk 0:01:08]}  Qh2+ {[%clk 0:00:17]} 54. Kxh2 {[%clk 0:01:08]} 1/2-1/2


[Site "https://www.chess.com"]

[Event "Titled Tuesday Blitz February 15 Early 2022"]
[White "Matveeva, Olga"]
[Black "Jaracz, Pawel"]
[WhiteFideId "24107018"]
[BlackFideId "1102222"]
[WhiteElo "2083"]
[BlackElo "2429"]
[Result "0-1"]
[Round "01"]
[TimeControl "180+1"]
[Date "2022.02.15"]
[WhiteClock "0:00:34"]
[BlackClock "0:01:03"]

1. e4 {[%clk 0:03:00]}  c5 {[%clk 0:02:47]} 2. Nf3 {[%clk 0:02:59]}  e6 {[%clk 0:02:46]} 3. g3 {[%clk 0:02:54]}  b6 {[%clk 0:02:46]} 4. Bg2 {[%clk 0:02:50]}  Bb7 {[%clk 0:02:46]} 5. d4 {[%clk 0:02:45]}  cxd4 {[%clk 0:02:42]} 6. Nxd4 {[%clk 0:02:42]}  d6 {[%clk 0:02:38]} 7. Nc3 {[%clk 0:02:31]}  a6 {[%clk 0:02:38]} 8. O-O {[%clk 0:02:16]}  Qc7 {[%clk 0:02:38]} 9. Be3 {[%clk 0:02:05]}  Be7 {[%clk 0:02:37]} 10. f4 {[%clk 0:01:59]}  Nd7 {[%clk 0:02:34]} 11. Qd2 {[%clk 0:01:54]}  Ngf6 {[%clk 0:02:34]} 12. Rae1 {[%clk 0:01:53]}  b5 {[%clk 0:02:33]} 13. a3 {[%clk 0:01:51]}  O-O {[%clk 0:02:31]} 14. Kh1 {[%clk 0:01:50]}  Nb6 {[%clk 0:02:22]} 15. b3 {[%clk 0:01:19]}  Rac8 {[%clk 0:02:21]} 16. Nde2 {[%clk 0:01:13]}  d5 {[%clk 0:02:04]} 17. e5 {[%clk 0:01:06]}  Ne4 {[%clk 0:02:00]} 18. Nxe4 {[%clk 0:00:58]}  dxe4 {[%clk 0:02:00]} 19. Nd4 {[%clk 0:00:57]}  Rfd8 {[%clk 0:01:32]} 20. Qe2 {[%clk 0:00:55]}  Nd5 {[%clk 0:01:31]} 21. Bg1 {[%clk 0:00:52]}  Bxa3 {[%clk 0:01:23]} 22. Qh5 {[%clk 0:00:46]}  g6 {[%clk 0:01:22]} 23. Qg4 {[%clk 0:00:42]}  e3 {[%clk 0:01:18]} 24. Nf3 {[%clk 0:00:37]}  Qxc2 {[%clk 0:01:11]} 25. Ng5 {[%clk 0:00:34]}  Qxg2+ {[%clk 0:01:03]} 26. Kxg2 {[%clk 0:00:34]}  Nxf4# {[%clk 0:01:03]} 0-1


[Site "https://www.chess.com"]

[Event "Titled Tuesday Blitz February 15 Early 2022"]
[White "Milanovic, Marko"]
[Black "Bongo Akanga Ndjila, Barthelemy"]
[WhiteFideId "980129"]
[BlackFideId "10609431"]
[WhiteElo "1976"]
[BlackElo "1803"]
[Result "1-0"]
[Round "01"]
[TimeControl "180+1"]
[Date "2022.02.15"]
[WhiteClock "0:00:25"]
[BlackClock "0:00:12"]

1. e4 {[%clk 0:02:59]}  g6 {[%clk 0:02:59]} 2. d4 {[%clk 0:02:59]}  d6 {[%clk 0:02:59]} 3. Nf3 {[%clk 0:02:59]}  Bg7 {[%clk 0:02:59]} 4. Bc4 {[%clk 0:02:59]}  Nf6 {[%clk 0:02:56]} 5. Qe2 {[%clk 0:02:59]}  O-O {[%clk 0:02:54]} 6. e5 {[%clk 0:02:59]}  Ne8 {[%clk 0:02:51]} 7. O-O {[%clk 0:02:50]}  d5 {[%clk 0:02:50]} 8. Bd3 {[%clk 0:02:51]}  Bg4 {[%clk 0:02:49]} 9. h3 {[%clk 0:02:48]}  Bxf3 {[%clk 0:02:49]} 10. Qxf3 {[%clk 0:02:49]}  e6 {[%clk 0:02:49]} 11. Be3 {[%clk 0:02:47]}  f6 {[%clk 0:02:46]} 12. exf6 {[%clk 0:02:46]}  Nxf6 {[%clk 0:02:46]} 13. Nd2 {[%clk 0:02:44]}  Ne4 {[%clk 0:02:45]} 14. Qg4 {[%clk 0:02:40]}  Nxd2 {[%clk 0:02:42]} 15. Qxe6+ {[%clk 0:02:38]}  Kh8 {[%clk 0:02:41]} 16. Bxd2 {[%clk 0:02:39]}  Bxd4 {[%clk 0:02:34]} 17. Rad1 {[%clk 0:02:37]}  c6 {[%clk 0:02:27]} 18. c3 {[%clk 0:02:31]}  Bg7 {[%clk 0:02:26]} 19. Rfe1 {[%clk 0:02:23]}  Nd7 {[%clk 0:02:26]} 20. Bc2 {[%clk 0:01:57]}  Nc5 {[%clk 0:02:25]} 21. Qg4 {[%clk 0:01:56]}  Qf6 {[%clk 0:02:20]} 22. Be3 {[%clk 0:01:54]}  Qd6 {[%clk 0:02:08]} 23. Qb4 {[%clk 0:01:35]}  b6 {[%clk 0:02:06]} 24. a4 {[%clk 0:01:24]}  Rab8 {[%clk 0:01:54]} 25. a5 {[%clk 0:01:22]}  Nb7 {[%clk 0:01:35]} 26. Qxd6 {[%clk 0:01:13]}  Nxd6 {[%clk 0:01:35]} 27. axb6 {[%clk 0:01:13]}  axb6 {[%clk 0:01:35]} 28. Ra1 {[%clk 0:01:13]}  Nc4 {[%clk 0:01:33]} 29. Bc1 {[%clk 0:01:13]}  Rf7 {[%clk 0:01:28]} 30. Bd3 {[%clk 0:01:04]}  Ne5 {[%clk 0:01:26]} 31. Be2 {[%clk 0:01:02]}  Rbf8 {[%clk 0:01:24]} 32. Be3 {[%clk 0:01:01]}  c5 {[%clk 0:01:24]} 33. Ra6 {[%clk 0:01:00]}  Rf6 {[%clk 0:01:20]} 34. Rea1 {[%clk 0:00:57]}  Rd6 {[%clk 0:01:11]} 35. Bxc5 {[%clk 0:00:56]}  bxc5 {[%clk 0:01:05]} 36. Rxd6 {[%clk 0:00:56]}  d4 {[%clk 0:01:04]} 37. Rd5 {[%clk 0:00:50]}  dxc3 {[%clk 0:01:02]} 38. bxc3 {[%clk 0:00:50]}  c4 {[%clk 0:00:55]} 39. f4 {[%clk 0:00:46]}  Nc6 {[%clk 0:00:52]} 40. Bxc4 {[%clk 0:00:40]}  Bxc3 {[%clk 0:00:51]} 41. Rf1 {[%clk 0:00:33]}  Nb4 {[%clk 0:00:43]} 42. Rd7 {[%clk 0:00:34]}  Nc2 {[%clk 0:00:41]} 43. Rc1 {[%clk 0:00:28]}  Rxf4 {[%clk 0:00:15]} 44. Bd3 {[%clk 0:00:26]}  Bd4+ {[%clk 0:00:12]} 45. Kh2 {[%clk 0:00:25]}  Ne3 {[%clk 0:00:12]} 46. Rc8+ {[%clk 0:00:25]} 1-0


[Site "https://www.chess.com"]

[Event "Titled Tuesday Blitz February 15 Early 2022"]
[White "Mohammed, Dilshad"]
[Black "Petrosyan, Manuel"]
[WhiteFideId "5050421"]
[BlackFideId "13300857"]
[WhiteElo "2153"]
[BlackElo "2592"]
[Result "0-1"]
[Round "01"]
[TimeControl "180+1"]
[Date "2022.02.15"]
[WhiteClock "0:00:15"]
[BlackClock "0:00:11"]

1. Nf3 {[%clk 0:02:58]}  d5 {[%clk 0:02:49]} 2. c4 {[%clk 0:02:57]}  e6 {[%clk 0:02:49]} 3. cxd5 {[%clk 0:02:57]}  exd5 {[%clk 0:02:49]} 4. d4 {[%clk 0:02:57]}  c6 {[%clk 0:02:47]} 5. e3 {[%clk 0:02:56]}  Bf5 {[%clk 0:02:47]} 6. Bd3 {[%clk 0:02:53]}  Bxd3 {[%clk 0:02:46]} 7. Qxd3 {[%clk 0:02:54]}  Nf6 {[%clk 0:02:47]} 8. Nc3 {[%clk 0:02:53]}  Bd6 {[%clk 0:02:46]} 9. O-O {[%clk 0:02:53]}  O-O {[%clk 0:02:47]} 10. e4 {[%clk 0:02:44]}  dxe4 {[%clk 0:02:46]} 11. Nxe4 {[%clk 0:02:45]}  Nxe4 {[%clk 0:02:40]} 12. Qxe4 {[%clk 0:02:46]}  Nd7 {[%clk 0:02:34]} 13. Bg5 {[%clk 0:02:44]}  Qc7 {[%clk 0:02:27]} 14. Bh4 {[%clk 0:02:40]}  Rfe8 {[%clk 0:02:21]} 15. Qg4 {[%clk 0:02:39]}  Nf8 {[%clk 0:02:04]} 16. Rfe1 {[%clk 0:02:33]}  Ng6 {[%clk 0:01:55]} 17. Bg3 {[%clk 0:02:32]}  h6 {[%clk 0:01:43]} 18. Rac1 {[%clk 0:02:27]}  Rxe1+ {[%clk 0:01:40]} 19. Rxe1 {[%clk 0:02:18]}  Bxg3 {[%clk 0:01:39]} 20. hxg3 {[%clk 0:02:18]}  Rd8 {[%clk 0:01:38]} 21. Qe4 {[%clk 0:01:38]}  Qd6 {[%clk 0:01:30]} 22. Qf5 {[%clk 0:01:33]}  Ne7 {[%clk 0:01:13]} 23. Qh5 {[%clk 0:01:25]}  Nd5 {[%clk 0:01:05]} 24. Ne5 {[%clk 0:01:23]}  Rf8 {[%clk 0:01:03]} 25. Nf3 {[%clk 0:01:19]}  Qb4 {[%clk 0:01:01]} 26. Re2 {[%clk 0:01:15]}  Qc4 {[%clk 0:01:01]} 27. Ne5 {[%clk 0:01:04]}  Qxa2 {[%clk 0:00:44]} 28. Nd7 {[%clk 0:01:03]}  Rd8 {[%clk 0:00:43]} 29. Ne5 {[%clk 0:01:03]}  Nf6 {[%clk 0:00:40]} 30. Qh4 {[%clk 0:00:52]}  Qd5 {[%clk 0:00:33]} 31. Nf3 {[%clk 0:00:47]}  Qb5 {[%clk 0:00:24]} 32. Rd2 {[%clk 0:00:31]}  Re8 {[%clk 0:00:24]} 33. Ne5 {[%clk 0:00:28]}  Qb4 {[%clk 0:00:24]} 34. Qf4 {[%clk 0:00:26]}  a5 {[%clk 0:00:20]} 35. g4 {[%clk 0:00:24]}  Rf8 {[%clk 0:00:17]} 36. g3 {[%clk 0:00:23]}  Nd5 {[%clk 0:00:17]} 37. Nd3 {[%clk 0:00:21]}  Nxf4 {[%clk 0:00:09]} 38. Nxb4 {[%clk 0:00:21]}  Nh3+ {[%clk 0:00:09]} 39. Kg2 {[%clk 0:00:20]}  Nxf2 {[%clk 0:00:10]} 40. Kxf2 {[%clk 0:00:18]}  axb4 {[%clk 0:00:10]} 41. Rd3 {[%clk 0:00:18]}  Rd8 {[%clk 0:00:10]} 42. Ke3 {[%clk 0:00:18]}  Rd5 {[%clk 0:00:10]} 43. Rb3 {[%clk 0:00:18]}  Rb5 {[%clk 0:00:10]} 44. Kd3 {[%clk 0:00:18]}  Kf8 {[%clk 0:00:08]} 45. Kc4 {[%clk 0:00:18]}  Rg5 {[%clk 0:00:08]} 46. Rxb4 {[%clk 0:00:18]}  b5+ {[%clk 0:00:09]} 47. Kd3 {[%clk 0:00:16]}  Rxg4 {[%clk 0:00:09]} 48. Rb3 {[%clk 0:00:15]}  Rxg3+ {[%clk 0:00:10]} 49. Kc2 {[%clk 0:00:15]}  Rxb3 {[%clk 0:00:10]} 50. Kxb3 {[%clk 0:00:16]}  h5 {[%clk 0:00:11]} 51. d5 {[%clk 0:00:15]}  cxd5 {[%clk 0:00:11]} 0-1


[Site "https://www.chess.com"]

[Event "Titled Tuesday Blitz February 15 Early 2022"]
[White "Molina, Roberto Junio Brito"]
[Black "Gulevich, Artem"]
[WhiteFideId "2109450"]
[BlackFideId "24119580"]
[WhiteElo "2402"]
[BlackElo "2218"]
[Result "1-0"]
[Round "01"]
[TimeControl "180+1"]
[Date "2022.02.15"]
[WhiteClock "0:02:35"]
[BlackClock "0:02:00"]

1. d4 {[%clk 0:02:54]}  d5 {[%clk 0:02:59]} 2. Nf3 {[%clk 0:02:51]}  Nf6 {[%clk 0:02:59]} 3. e3 {[%clk 0:02:46]}  e6 {[%clk 0:02:58]} 4. Bd3 {[%clk 0:02:45]}  c5 {[%clk 0:02:58]} 5. c3 {[%clk 0:02:46]}  Nc6 {[%clk 0:02:57]} 6. O-O {[%clk 0:02:45]}  Bd6 {[%clk 0:02:57]} 7. Nbd2 {[%clk 0:02:46]}  O-O {[%clk 0:02:56]} 8. dxc5 {[%clk 0:02:46]}  Bxc5 {[%clk 0:02:56]} 9. e4 {[%clk 0:02:47]}  dxe4 {[%clk 0:02:56]} 10. Nxe4 {[%clk 0:02:48]}  Nxe4 {[%clk 0:02:56]} 11. Bxe4 {[%clk 0:02:49]}  Qc7 {[%clk 0:02:12]} 12. Qe2 {[%clk 0:02:46]}  b6 {[%clk 0:02:00]} 13. b4 {[%clk 0:02:35]} 1-0


[Site "https://www.chess.com"]

[Event "Titled Tuesday Blitz February 15 Early 2022"]
[White "Niemann, Hans Moke"]
[Black "Rodchenkov, Sergey D."]
[WhiteFideId "2093596"]
[BlackFideId "4168712"]
[WhiteElo "2636"]
[BlackElo "2306"]
[Result "1-0"]
[Round "01"]
[TimeControl "180+1"]
[Date "2022.02.15"]
[WhiteClock "0:02:29"]
[BlackClock "0:02:01"]

1. d4 {[%clk 0:02:56]}  d5 {[%clk 0:03:00]} 2. Nc3 {[%clk 0:02:56]}  Nf6 {[%clk 0:02:59]} 3. Bf4 {[%clk 0:02:52]}  c5 {[%clk 0:02:57]} 4. e4 {[%clk 0:02:50]}  cxd4 {[%clk 0:02:35]} 5. Qxd4 {[%clk 0:02:49]}  Nc6 {[%clk 0:02:33]} 6. Bb5 {[%clk 0:02:49]}  Bd7 {[%clk 0:02:33]} 7. Bxc6 {[%clk 0:02:49]}  Bxc6 {[%clk 0:02:34]} 8. e5 {[%clk 0:02:48]}  Ng8 {[%clk 0:02:18]} 9. e6 {[%clk 0:02:47]}  fxe6 {[%clk 0:02:14]} 10. Nf3 {[%clk 0:02:47]}  e5 {[%clk 0:02:10]} 11. Bxe5 {[%clk 0:02:41]}  Nf6 {[%clk 0:02:09]} 12. O-O-O {[%clk 0:02:41]}  Qd7 {[%clk 0:02:06]} 13. Rhe1 {[%clk 0:02:29]}  O-O-O {[%clk 0:02:01]} 14. Qxa7 {[%clk 0:02:29]} 1-0


[Site "https://www.chess.com"]

[Event "Titled Tuesday Blitz February 15 Early 2022"]
[White "Paravyan, David"]
[Black "Atanasov, Anthony"]
[WhiteFideId "4194985"]
[BlackFideId "2623897"]
[WhiteElo "2569"]
[BlackElo "1928"]
[Result "1-0"]
[Round "01"]
[TimeControl "180+1"]
[Date "2022.02.15"]
[WhiteClock "0:00:15"]
[BlackClock "0:00:01"]

1. e4 {[%clk 0:02:59]}  c5 {[%clk 0:02:57]} 2. Nf3 {[%clk 0:02:59]}  d6 {[%clk 0:02:57]} 3. d4 {[%clk 0:02:59]}  cxd4 {[%clk 0:02:58]} 4. Nxd4 {[%clk 0:03:00]}  Nf6 {[%clk 0:02:57]} 5. Nc3 {[%clk 0:03:00]}  a6 {[%clk 0:02:57]} 6. Bg5 {[%clk 0:02:59]}  Nbd7 {[%clk 0:02:57]} 7. f4 {[%clk 0:02:58]}  Qc7 {[%clk 0:02:54]} 8. Qf3 {[%clk 0:02:54]}  h6 {[%clk 0:02:52]} 9. Bxf6 {[%clk 0:02:52]}  Nxf6 {[%clk 0:02:53]} 10. f5 {[%clk 0:02:52]}  Qc5 {[%clk 0:02:40]} 11. O-O-O {[%clk 0:02:52]}  g5 {[%clk 0:02:39]} 12. fxg6 {[%clk 0:02:51]}  Bg4 {[%clk 0:02:40]} 13. gxf7+ {[%clk 0:02:51]}  Kxf7 {[%clk 0:02:40]} 14. Qd3 {[%clk 0:02:41]}  Bxd1 {[%clk 0:02:38]} 15. Nxd1 {[%clk 0:02:27]}  b5 {[%clk 0:01:37]} 16. Qb3+ {[%clk 0:02:22]}  Ke8 {[%clk 0:01:33]} 17. Ne6 {[%clk 0:02:22]}  Qc6 {[%clk 0:01:26]} 18. Nc3 {[%clk 0:02:18]}  Nxe4 {[%clk 0:00:54]} 19. Nd5 {[%clk 0:01:32]}  h5 {[%clk 0:00:50]} 20. Nec7+ {[%clk 0:00:58]}  Kd8 {[%clk 0:00:45]} 21. Ne6+ {[%clk 0:00:34]}  Kc8 {[%clk 0:00:41]} 22. Nxf8 {[%clk 0:00:30]}  Ra7 {[%clk 0:00:04]} 23. Ne6 {[%clk 0:00:25]}  Nc5 {[%clk 0:00:02]} 24. Nxc5 {[%clk 0:00:24]}  dxc5 {[%clk 0:00:02]} 25. Be2 {[%clk 0:00:20]}  c4 {[%clk 0:00:02]} 26. Qe3 {[%clk 0:00:19]}  Rd7 {[%clk 0:00:01]} 27. Nb6+ {[%clk 0:00:15]} 1-0


[Site "https://www.chess.com"]